[Event "UK Open Blitz Championships 2024 - London Qualifier"]
[Site "London, United Kingdom"]
[Date "2024.09.21"]
[Round "1.1"]
[White "Ghasi, Ameet K"]
[Black "Graff, Ben"]
[Result "1-0"]
[TimeControl "3 minutes + 2 seconds incr. from move 1"]
[WhiteTitle "IM"]
[WhiteFideId "409200"]
[BlackFideId "424170"]
[WhiteElo "2524"]
[BlackElo "1798"]

1. Nf3 {[%clk 00:03:02]} {[%emt 00:00:02]} Nf6 {[%clk 00:03:03]} 2. g3 {[%clk
00:03:03]} g6 {[%clk 00:03:05]} 3. b3 {[%clk 00:03:01]} {[%emt 00:00:03]} Bg7
{[%clk 00:03:05]} {[%emt 00:00:01]} 4. Bb2 {[%clk 00:03:02]} {[%emt 00:00:01]}
O-O {[%clk 00:03:06]} {[%emt 00:00:02]} 5. Bg2 {[%clk 00:03:02]} {[%emt
00:00:01]} d5 {[%clk 00:03:04]} {[%emt 00:00:05]} 6. c4 {[%clk 00:03:00]}
{[%emt 00:00:03]} c6 {[%clk 00:03:02]} {[%emt 00:00:04]} 7. O-O {[%clk
00:03:00]} {[%emt 00:00:02]} Nbd7 {[%clk 00:02:50]} {[%emt 00:00:13]} 8. a4
{[%clk 00:02:59]} {[%emt 00:00:03]} a5 {[%clk 00:02:44]} {[%emt 00:00:09]} 9.
d4 {[%clk 00:03:00]} Re8 {[%clk 00:02:42]} {[%emt 00:00:04]} 10. Nc3 {[%clk
00:03:00]} {[%emt 00:00:02]} dxc4 {[%clk 00:02:30]} {[%emt 00:00:14]} 11. bxc4
{[%clk 00:03:01]} {[%emt 00:00:02]} Nb6 {[%clk 00:02:15]} {[%emt 00:00:16]} 12.
Qd3 {[%clk 00:02:30]} {[%emt 00:00:32]} Qc7 {[%clk 00:01:42]} {[%emt 00:00:35]}
13. Bc1 {[%clk 00:01:39]} {[%emt 00:00:53]} Be6 {[%clk 00:01:35]} {[%emt
00:00:09]} 14. Bf4 {[%clk 00:01:34]} {[%emt 00:00:08]} Qc8 {[%clk 00:01:30]}
{[%emt 00:00:08]} 15. Nd2 {[%clk 00:01:33]} {[%emt 00:00:02]} Rd8 {[%clk
00:01:21]} {[%emt 00:00:11]} 16. Rab1 {[%clk 00:01:30]} {[%emt 00:00:05]} Nbd7
{[%clk 00:01:11]} {[%emt 00:00:11]} 17. Qc2 {[%clk 00:01:30]} {[%emt 00:00:02]}
Nf8 {[%clk 00:01:03]} {[%emt 00:00:11]} 18. Be5 {[%clk 00:01:29]} {[%emt
00:00:03]} Bh3 {[%clk 00:00:59]} {[%emt 00:00:05]} 19. e3 {[%clk 00:01:18]}
{[%emt 00:00:14]} Bxg2 {[%clk 00:01:00]} {[%emt 00:00:02]} 20. Kxg2 {[%clk
00:01:19]} {[%emt 00:00:01]} Qe6 {[%clk 00:00:51]} {[%emt 00:00:11]} 21. Rxb7
{[%clk 00:01:11]} {[%emt 00:00:09]} N8d7 {[%clk 00:00:40]} {[%emt 00:00:12]} 22.
Bxf6 {[%clk 00:01:12]} {[%emt 00:00:02]} Nxf6 {[%clk 00:00:38]} {[%emt
00:00:05]} 23. Rfb1 {[%clk 00:01:06]} {[%emt 00:00:08]} h5 {[%clk 00:00:23]}
{[%emt 00:00:16]} 24. Nce4 {[%clk 00:01:00]} {[%emt 00:00:09]} Nxe4 {[%clk
00:00:22]} {[%emt 00:00:03]} 25. Qxe4 {[%clk 00:01:00]} {[%emt 00:00:01]} Qxe4+
{[%clk 00:00:16]} {[%emt 00:00:08]} 26. Nxe4 {[%clk 00:01:01]} {[%emt
00:00:01]} e5 {[%clk 00:00:16]} {[%emt 00:00:03]} 27. dxe5 {[%clk 00:00:54]}
{[%emt 00:00:09]} Bxe5 {[%clk 00:00:16]} {[%emt 00:00:02]} 28. Re7 {[%clk
00:00:54]} {[%emt 00:00:02]} Re8 {[%clk 00:00:11]} {[%emt 00:00:08]} 29. Rbb7
{[%clk 00:00:52]} {[%emt 00:00:04]} Rxe7 {[%clk 00:00:09]} {[%emt 00:00:04]} 30.
Rxe7 {[%clk 00:00:52]} {[%emt 00:00:01]} Kg7 {[%clk 00:00:09]} {[%emt
00:00:03]} 31. Rxe5 {[%clk 00:00:52]} {[%emt 00:00:02]} Rb8 {[%clk 00:00:09]}
{[%emt 00:00:02]} 32. Rxa5 {[%clk 00:00:53]} {[%emt 00:00:02]} Rb4 {[%clk
00:00:10]} 33. Nd6 {[%clk 00:00:53]} {[%emt 00:00:01]} Rb6 {[%clk 00:00:09]}
{[%emt 00:00:03]} 34. Ra7 {[%clk 00:00:54]} {[%emt 00:00:01]} 1-0

[Event "UK Open Blitz Championships 2024 - London Qualifier"]
[Site "London, United Kingdom"]
[Date "2024.09.21"]
[Round "1.2"]
[White "Mcbrinn, Conall"]
[Black "Gasanov, Eldar"]
[Result "0-1"]
[TimeControl "3 minutes + 2 seconds incr. from move 1"]
[BlackTitle "GM"]
[WhiteFideId "461172"]
[BlackFideId "14104466"]
[WhiteElo "1787"]
[BlackElo "2467"]

1. d4 {[%clk 00:03:02]} {[%emt 00:00:02]} d6 {[%clk 00:03:02]} {[%emt
00:00:01]} 2. c4 {[%clk 00:03:02]} {[%emt 00:00:02]} e5 {[%clk 00:03:03]} 3. e3
{[%clk 00:03:02]} {[%emt 00:00:03]} Nd7 {[%clk 00:03:03]} {[%emt 00:00:02]} 4.
Nc3 {[%clk 00:03:02]} {[%emt 00:00:02]} g6 {[%clk 00:03:03]} {[%emt 00:00:01]}
5. d5 {[%clk 00:03:01]} {[%emt 00:00:03]} f5 {[%clk 00:02:58]} {[%emt
00:00:07]} 6. Qc2 {[%clk 00:03:00]} {[%emt 00:00:03]} Bg7 {[%clk 00:02:54]}
{[%emt 00:00:06]} 7. Be2 {[%clk 00:02:57]} {[%emt 00:00:05]} e4 {[%clk
00:02:51]} {[%emt 00:00:05]} 8. Bd2 {[%clk 00:02:54]} {[%emt 00:00:05]} Ngf6
{[%clk 00:02:45]} {[%emt 00:00:08]} 9. Nb5 {[%clk 00:02:49]} {[%emt 00:00:06]}
Ne5 {[%clk 00:02:40]} {[%emt 00:00:07]} 10. Nd4 {[%clk 00:02:47]} {[%emt
00:00:05]} c5 {[%clk 00:02:38]} {[%emt 00:00:04]} 11. dxc6 {[%clk 00:02:40]}
{[%emt 00:00:10]} bxc6 {[%clk 00:02:39]} 12. Nh3 {[%clk 00:02:32]} {[%emt
00:00:10]} c5 {[%clk 00:02:32]} {[%emt 00:00:09]} 13. Nb5 {[%clk 00:02:28]}
{[%emt 00:00:05]} O-O {[%clk 00:02:26]} {[%emt 00:00:06]} 14. O-O {[%clk
00:02:27]} {[%emt 00:00:04]} Qe7 {[%clk 00:02:19]} {[%emt 00:00:09]} 15. Rfd1
{[%clk 00:02:22]} {[%emt 00:00:07]} a6 {[%clk 00:02:09]} {[%emt 00:00:12]} 16.
Nc3 {[%clk 00:02:22]} {[%emt 00:00:03]} Be6 {[%clk 00:02:10]} {[%emt 00:00:01]}
17. b3 {[%clk 00:02:18]} {[%emt 00:00:06]} Kh8 {[%clk 00:01:54]} {[%emt
00:00:18]} 18. Rac1 {[%clk 00:02:10]} {[%emt 00:00:10]} Bg8 {[%clk 00:01:53]}
{[%emt 00:00:03]} 19. Nf4 {[%clk 00:02:06]} {[%emt 00:00:06]} g5 {[%clk
00:01:51]} {[%emt 00:00:04]} 20. Nfd5 {[%clk 00:01:47]} {[%emt 00:00:20]} Nxd5
{[%clk 00:01:52]} {[%emt 00:00:01]} 21. Nxd5 {[%clk 00:01:47]} {[%emt
00:00:03]} Bxd5 {[%clk 00:01:52]} {[%emt 00:00:01]} 22. cxd5 {[%clk 00:01:46]}
{[%emt 00:00:02]} g4 {[%clk 00:01:43]} {[%emt 00:00:12]} 23. g3 {[%clk
00:01:33]} {[%emt 00:00:15]} Nf3+ {[%clk 00:01:30]} {[%emt 00:00:15]} 24. Kg2
{[%clk 00:01:23]} {[%emt 00:00:12]} Rf6 {[%clk 00:01:26]} {[%emt 00:00:06]} 25.
Bc3 {[%clk 00:01:11]} {[%emt 00:00:13]} Rh6 {[%clk 00:01:27]} {[%emt 00:00:01]}
26. Rh1 {[%clk 00:01:09]} {[%emt 00:00:05]} a5 {[%clk 00:01:15]} {[%emt
00:00:14]} 27. Bxg7+ {[%clk 00:00:50]} {[%emt 00:00:21]} Qxg7 {[%clk 00:01:16]}
{[%emt 00:00:01]} 28. Qc3 {[%clk 00:00:32]} {[%emt 00:00:21]} Ne5 {[%clk
00:01:14]} {[%emt 00:00:04]} 29. Rhd1 {[%clk 00:00:24]} {[%emt 00:00:10]} Qf7
{[%clk 00:01:04]} {[%emt 00:00:12]} 30. Rh1 {[%clk 00:00:16]} {[%emt 00:00:10]}
Qxd5 {[%clk 00:00:55]} {[%emt 00:00:11]} 31. Rcd1 {[%clk 00:00:16]} {[%emt
00:00:02]} Qe6 {[%clk 00:00:56]} 32. Rd2 {[%clk 00:00:15]} {[%emt 00:00:03]} a4
{[%clk 00:00:40]} {[%emt 00:00:18]} 33. Rhd1 {[%clk 00:00:15]} {[%emt
00:00:02]} Qe7 {[%clk 00:00:41]} {[%emt 00:00:01]} 34. bxa4 {[%clk 00:00:11]}
{[%emt 00:00:05]} Rxa4 {[%clk 00:00:42]} 35. Qb3 {[%clk 00:00:10]} {[%emt
00:00:04]} Rb4 {[%clk 00:00:41]} {[%emt 00:00:03]} 36. Qa3 {[%clk 00:00:10]}
{[%emt 00:00:02]} Kg7 {[%clk 00:00:36]} {[%emt 00:00:07]} 37. Rd5 {[%clk
00:00:11]} Rb6 {[%clk 00:00:31]} {[%emt 00:00:07]} 38. Qa5 {[%clk 00:00:12]}
Qb7 {[%clk 00:00:29]} {[%emt 00:00:04]} 39. a3 {[%clk 00:00:12]} {[%emt
00:00:02]} Rb2 {[%clk 00:00:28]} {[%emt 00:00:02]} 40. Bf1 {[%clk 00:00:13]}
{[%emt 00:00:02]} Nd3 {[%clk 00:00:26]} {[%emt 00:00:04]} 41. Bxd3 {[%clk
00:00:13]} {[%emt 00:00:02]} Qxd5 {[%clk 00:00:28]} 42. Bf1 {[%clk 00:00:14]}
{[%emt 00:00:02]} Qxd1 {[%clk 00:00:27]} {[%emt 00:00:03]} 43. Qc7+ {[%clk
00:00:14]} {[%emt 00:00:01]} Kg6 {[%clk 00:00:27]} {[%emt 00:00:02]} 44. Qc6
{[%clk 00:00:14]} {[%emt 00:00:03]} Qf3+ {[%clk 00:00:27]} {[%emt 00:00:01]} 45.
Kg1 {[%clk 00:00:15]} {[%emt 00:00:01]} Qxf2+ {[%clk 00:00:28]} {[%emt
00:00:01]} 0-1

[Event "UK Open Blitz Championships 2024 - London Qualifier"]
[Site "London, United Kingdom"]
[Date "2024.09.21"]
[Round "1.4"]
[White "Janula, Mariusz"]
[Black "Roberson, Peter T"]
[Result "0-1"]
[TimeControl "3 minutes + 2 seconds incr. from move 1"]
[BlackTitle "IM"]
[WhiteFideId "1163477"]
[BlackFideId "412384"]
[WhiteElo "1783"]
[BlackElo "2346"]

1. e4 {[%clk 00:03:01]} {[%emt 00:00:02]} e6 {[%clk 00:03:03]} {[%emt
00:00:02]} 2. d4 {[%clk 00:02:58]} {[%emt 00:00:04]} d5 {[%clk 00:03:04]}
{[%emt 00:00:01]} 3. e5 {[%clk 00:02:56]} {[%emt 00:00:04]} c5 {[%clk
00:03:04]} {[%emt 00:00:01]} 4. c3 {[%clk 00:02:57]} {[%emt 00:00:01]} Nc6
{[%clk 00:03:05]} {[%emt 00:00:01]} 5. Nf3 {[%clk 00:02:57]} {[%emt 00:00:02]}
Bd7 {[%clk 00:03:06]} 6. Be2 {[%clk 00:02:56]} {[%emt 00:00:03]} Nge7 {[%clk
00:03:04]} {[%emt 00:00:04]} 7. O-O {[%clk 00:02:46]} {[%emt 00:00:12]} Ng6
{[%clk 00:03:04]} {[%emt 00:00:02]} 8. Be3 {[%clk 00:02:42]} {[%emt 00:00:06]}
Be7 {[%clk 00:03:02]} {[%emt 00:00:04]} 9. Nbd2 {[%clk 00:02:36]} {[%emt
00:00:07]} O-O {[%clk 00:03:02]} {[%emt 00:00:03]} 10. Rc1 {[%clk 00:02:34]}
{[%emt 00:00:03]} Rc8 {[%clk 00:02:51]} {[%emt 00:00:13]} 11. Re1 {[%clk
00:02:34]} {[%emt 00:00:03]} cxd4 {[%clk 00:02:46]} {[%emt 00:00:07]} 12. cxd4
{[%clk 00:02:32]} {[%emt 00:00:04]} f6 {[%clk 00:02:46]} {[%emt 00:00:01]} 13.
exf6 {[%clk 00:02:17]} {[%emt 00:00:17]} Bxf6 {[%clk 00:02:42]} {[%emt
00:00:06]} 14. Bd3 {[%clk 00:02:15]} {[%emt 00:00:05]} Be8 {[%clk 00:02:13]}
{[%emt 00:00:31]} 15. a3 {[%clk 00:02:13]} {[%emt 00:00:03]} e5 {[%clk
00:02:05]} {[%emt 00:00:10]} 16. dxe5 {[%clk 00:02:03]} {[%emt 00:00:12]} Ngxe5
{[%clk 00:02:06]} {[%emt 00:00:01]} 17. Nxe5 {[%clk 00:02:01]} {[%emt
00:00:04]} Nxe5 {[%clk 00:02:04]} {[%emt 00:00:04]} 18. Bb1 {[%clk 00:02:02]}
{[%emt 00:00:01]} Rxc1 {[%clk 00:01:57]} {[%emt 00:00:09]} 19. Qxc1 {[%clk
00:02:01]} {[%emt 00:00:02]} Ng4 {[%clk 00:01:37]} {[%emt 00:00:22]} 20. Nf3
{[%clk 00:01:52]} {[%emt 00:00:12]} Nxe3 {[%clk 00:01:12]} {[%emt 00:00:28]} 21.
Rxe3 {[%clk 00:01:43]} {[%emt 00:00:10]} d4 {[%clk 00:01:13]} {[%emt 00:00:01]}
22. Re1 {[%clk 00:01:34]} {[%emt 00:00:11]} d3 {[%clk 00:01:08]} {[%emt
00:00:07]} 23. Qc4+ {[%clk 00:01:29]} {[%emt 00:00:07]} Bf7 {[%clk 00:00:55]}
{[%emt 00:00:14]} 24. Qxd3 {[%clk 00:01:22]} {[%emt 00:00:09]} Qxd3 {[%clk
00:00:57]} 25. Bxd3 {[%clk 00:01:23]} {[%emt 00:00:02]} Bxb2 {[%clk 00:00:58]}
26. Rb1 {[%clk 00:01:19]} {[%emt 00:00:05]} Bxa3 {[%clk 00:00:58]} {[%emt
00:00:03]} 27. Rxb7 {[%clk 00:01:17]} {[%emt 00:00:04]} Bc5 {[%clk 00:00:53]}
{[%emt 00:00:07]} 28. Rd7 {[%clk 00:01:12]} {[%emt 00:00:07]} Be6 {[%clk
00:00:45]} {[%emt 00:00:10]} 29. Rc7 {[%clk 00:01:03]} {[%emt 00:00:11]} Bb6
{[%clk 00:00:45]} {[%emt 00:00:02]} 30. Rc1 {[%clk 00:01:01]} {[%emt 00:00:04]}
Rd8 {[%clk 00:00:33]} {[%emt 00:00:13]} 31. Bb1 {[%clk 00:00:56]} {[%emt
00:00:07]} a5 {[%clk 00:00:31]} {[%emt 00:00:03]} 32. Ne5 {[%clk 00:00:54]}
{[%emt 00:00:05]} a4 {[%clk 00:00:30]} {[%emt 00:00:03]} 33. Nc6 {[%clk
00:00:52]} {[%emt 00:00:04]} Rd2 {[%clk 00:00:28]} {[%emt 00:00:04]} 34. Rf1
{[%clk 00:00:24]} {[%emt 00:00:31]} a3 {[%clk 00:00:28]} {[%emt 00:00:02]} 35.
Nb4 {[%clk 00:00:22]} {[%emt 00:00:04]} Rb2 {[%clk 00:00:24]} {[%emt 00:00:06]}
36. Nc2 {[%clk 00:00:19]} {[%emt 00:00:05]} a2 {[%clk 00:00:21]} {[%emt
00:00:06]} 37. Bxa2 {[%clk 00:00:17]} {[%emt 00:00:04]} Rxa2 {[%clk 00:00:22]}
38. Nb4 {[%clk 00:00:17]} {[%emt 00:00:02]} Rb2 {[%clk 00:00:19]} {[%emt
00:00:04]} 39. Nc6 {[%clk 00:00:18]} {[%emt 00:00:02]} Bc4 {[%clk 00:00:19]}
{[%emt 00:00:03]} 40. Ra1 {[%clk 00:00:10]} {[%emt 00:00:10]} Rxf2 {[%clk
00:00:16]} {[%emt 00:00:05]} 41. Ra8+ {[%clk 00:00:07]} {[%emt 00:00:05]} Rf8+
{[%clk 00:00:17]} {[%emt 00:00:02]} 0-1

[Event "UK Open Blitz Championships 2024 - London Qualifier"]
[Site "London, United Kingdom"]
[Date "2024.09.21"]
[Round "2.3"]
[White "Roberson, Peter T"]
[Black "Chauhan, Pranay"]
[Result "1-0"]
[TimeControl "3 minutes + 2 seconds incr. from move 1"]
[WhiteTitle "IM"]
[WhiteFideId "412384"]
[BlackFideId "431346"]
[WhiteElo "2346"]
[BlackElo "1935"]

1. e4 {[%clk 00:03:03]} {[%emt 00:00:02]} e6 {[%clk 00:03:03]} 2. d4 {[%clk
00:03:04]} {[%emt 00:00:01]} d5 {[%clk 00:03:04]} 3. e5 {[%clk 00:03:05]} c5
{[%clk 00:03:05]} 4. c3 {[%clk 00:03:07]} Nc6 {[%clk 00:03:07]} 5. Nf3 {[%clk
00:03:08]} Bd7 {[%clk 00:03:08]} 6. Be2 {[%clk 00:03:08]} {[%emt 00:00:02]} f6
{[%clk 00:02:59]} {[%emt 00:00:11]} 7. O-O {[%clk 00:03:05]} {[%emt 00:00:04]}
cxd4 {[%clk 00:03:00]} {[%emt 00:00:02]} 8. cxd4 {[%clk 00:03:04]} {[%emt
00:00:03]} Nh6 {[%clk 00:03:01]} {[%emt 00:00:01]} 9. Nc3 {[%clk 00:02:46]}
{[%emt 00:00:21]} Nf7 {[%clk 00:02:52]} {[%emt 00:00:11]} 10. Re1 {[%clk
00:02:46]} {[%emt 00:00:02]} fxe5 {[%clk 00:02:24]} {[%emt 00:00:31]} 11. dxe5
{[%clk 00:02:46]} {[%emt 00:00:01]} Be7 {[%clk 00:02:24]} {[%emt 00:00:03]} 12.
Bd3 {[%clk 00:02:46]} {[%emt 00:00:02]} O-O {[%clk 00:02:18]} {[%emt 00:00:08]}
13. Bf4 {[%clk 00:02:37]} {[%emt 00:00:10]} a6 {[%clk 00:02:07]} {[%emt
00:00:14]} 14. Rc1 {[%clk 00:02:26]} {[%emt 00:00:13]} g5 {[%clk 00:01:29]}
{[%emt 00:00:40]} 15. Bg3 {[%clk 00:02:22]} {[%emt 00:00:05]} Kh8 {[%clk
00:00:56]} {[%emt 00:00:35]} 16. Bb1 {[%clk 00:02:18]} {[%emt 00:00:06]} Nh6
{[%clk 00:00:40]} {[%emt 00:00:19]} 17. h3 {[%clk 00:01:29]} {[%emt 00:00:51]}
Nf5 {[%clk 00:00:34]} {[%emt 00:00:08]} 18. Bh2 {[%clk 00:01:30]} Qe8 {[%clk
00:00:34]} {[%emt 00:00:02]} 19. Qd2 {[%clk 00:01:24]} {[%emt 00:00:08]} Qh5
{[%clk 00:00:05]} {[%emt 00:00:31]} 20. Ne2 {[%clk 00:01:23]} {[%emt 00:00:03]}
Qh6 {[%clk 00:00:03]} {[%emt 00:00:04]} 21. Ned4 {[%clk 00:00:43]} {[%emt
00:00:42]} Ncxd4 {[%clk 00:00:04]} {[%emt 00:00:02]} 22. Nxd4 {[%clk 00:00:44]}
Nh4 {[%clk 00:00:05]} 23. Rc7 {[%clk 00:00:42]} {[%emt 00:00:05]} Rad8 {[%clk
00:00:06]} 24. Rxb7 {[%clk 00:00:38]} {[%emt 00:00:06]} Bc5 {[%clk 00:00:05]}
{[%emt 00:00:03]} 25. Re2 {[%clk 00:00:29]} {[%emt 00:00:11]} Ng6 {[%clk
00:00:00]} {[%emt 00:00:06]} 1-0

[Event "UK Open Blitz Championships 2024 - London Qualifier"]
[Site "London, United Kingdom"]
[Date "2024.09.21"]
[Round "2.4"]
[White "Udhayasuriyan, Ashwini"]
[Black "Badacsonyi, Stanley"]
[Result "0-1"]
[TimeControl "3 minutes + 2 seconds incr. from move 1"]
[BlackTitle "FM"]
[WhiteFideId "5046785"]
[BlackFideId "486973"]
[WhiteElo "1939"]
[BlackElo "2332"]

1. e4 {[%clk 00:03:01]} {[%emt 00:00:02]} e6 {[%clk 00:03:03]} 2. d4 {[%clk
00:03:02]} {[%emt 00:00:01]} d5 {[%clk 00:03:04]} 3. Nd2 {[%clk 00:02:58]}
{[%emt 00:00:06]} h6 {[%clk 00:03:04]} {[%emt 00:00:03]} 4. Ngf3 {[%clk
00:02:42]} {[%emt 00:00:18]} Nf6 {[%clk 00:03:05]} {[%emt 00:00:01]} 5. e5
{[%clk 00:02:36]} {[%emt 00:00:08]} Nfd7 {[%clk 00:03:05]} {[%emt 00:00:01]} 6.
Bd3 {[%clk 00:02:28]} {[%emt 00:00:09]} c5 {[%clk 00:03:06]} {[%emt 00:00:01]}
7. c3 {[%clk 00:02:29]} {[%emt 00:00:02]} Nc6 {[%clk 00:03:06]} 8. O-O {[%clk
00:02:23]} {[%emt 00:00:08]} g5 {[%clk 00:03:05]} {[%emt 00:00:02]} 9. h3
{[%clk 00:02:04]} {[%emt 00:00:21]} h5 {[%clk 00:03:05]} {[%emt 00:00:02]} 10.
dxc5 {[%clk 00:01:26]} {[%emt 00:00:40]} Ndxe5 {[%clk 00:02:51]} {[%emt
00:00:16]} 11. Nxe5 {[%clk 00:01:23]} {[%emt 00:00:04]} Nxe5 {[%clk 00:02:52]}
{[%emt 00:00:01]} 12. Nf3 {[%clk 00:01:16]} {[%emt 00:00:09]} Nxd3 {[%clk
00:02:44]} {[%emt 00:00:10]} 13. Qxd3 {[%clk 00:01:16]} {[%emt 00:00:02]} g4
{[%clk 00:02:42]} {[%emt 00:00:05]} 14. Ne5 {[%clk 00:01:15]} {[%emt 00:00:03]}
a6 {[%clk 00:02:28]} {[%emt 00:00:17]} 15. b4 {[%clk 00:01:15]} {[%emt
00:00:02]} Bg7 {[%clk 00:02:21]} {[%emt 00:00:09]} 16. Bf4 {[%clk 00:01:11]}
{[%emt 00:00:06]} Bd7 {[%clk 00:02:05]} {[%emt 00:00:18]} 17. a4 {[%clk
00:01:07]} {[%emt 00:00:06]} Rc8 {[%clk 00:01:45]} {[%emt 00:00:23]} 18. Rfe1
{[%clk 00:01:05]} {[%emt 00:00:04]} Kf8 {[%clk 00:01:45]} {[%emt 00:00:02]} 19.
Ra2 {[%clk 00:00:45]} {[%emt 00:00:23]} Be8 {[%clk 00:01:44]} {[%emt 00:00:03]}
20. c4 {[%clk 00:00:39]} {[%emt 00:00:07]} dxc4 {[%clk 00:01:35]} {[%emt
00:00:11]} 21. Qxd8 {[%clk 00:00:39]} {[%emt 00:00:02]} Rxd8 {[%clk 00:01:35]}
{[%emt 00:00:02]} 22. Nxc4 {[%clk 00:00:40]} {[%emt 00:00:02]} Rd4 {[%clk
00:01:29]} {[%emt 00:00:08]} 23. Bd6+ {[%clk 00:00:39]} {[%emt 00:00:02]} Kg8
{[%clk 00:01:30]} 24. Rc1 {[%clk 00:00:24]} {[%emt 00:00:17]} Bc6 {[%clk
00:01:31]} {[%emt 00:00:02]} 25. b5 {[%clk 00:00:22]} {[%emt 00:00:04]} axb5
{[%clk 00:01:25]} {[%emt 00:00:09]} 26. axb5 {[%clk 00:00:19]} {[%emt
00:00:05]} Bxb5 {[%clk 00:01:25]} 27. Ra8+ {[%clk 00:00:18]} {[%emt 00:00:03]}
Kh7 {[%clk 00:01:27]} 28. Rxh8+ {[%clk 00:00:17]} {[%emt 00:00:04]} Bxh8 {[%clk
00:01:27]} {[%emt 00:00:01]} 29. Ne5 {[%clk 00:00:17]} {[%emt 00:00:01]} gxh3
{[%clk 00:01:03]} {[%emt 00:00:27]} 30. gxh3 {[%clk 00:00:19]} {[%emt
00:00:01]} Rd5 {[%clk 00:01:01]} {[%emt 00:00:04]} 31. Nxf7 {[%clk 00:00:17]}
{[%emt 00:00:03]} Bf6 {[%clk 00:01:02]} 32. f4 {[%clk 00:00:14]} {[%emt
00:00:05]} Rd2 {[%clk 00:00:57]} {[%emt 00:00:07]} 33. Ng5+ {[%clk 00:00:15]}
{[%emt 00:00:02]} Kg6 {[%clk 00:00:57]} {[%emt 00:00:02]} 34. h4 {[%clk
00:00:15]} {[%emt 00:00:01]} Bd4+ {[%clk 00:00:58]} {[%emt 00:00:01]} 35. Kh1
{[%clk 00:00:13]} {[%emt 00:00:02]} Bc6+ {[%clk 00:00:59]} {[%emt 00:00:03]}
0-1

[Event "UK Open Blitz Championships 2024 - London Qualifier"]
[Site "London, United Kingdom"]
[Date "2024.09.21"]
[Round "2.5"]
[White "Yoon, Jacob D"]
[Black "Czopor, Maciej"]
[Result "1-0"]
[TimeControl "3 minutes + 2 seconds incr. from move 1"]
[WhiteTitle "CM"]
[BlackTitle "FM"]
[WhiteFideId "446076"]
[BlackFideId "21805431"]
[WhiteElo "1921"]
[BlackElo "2320"]

1. d4 {[%clk 00:03:03]} {[%emt 00:00:01]} Nf6 {[%clk 00:03:03]} {[%emt
00:00:01]} 2. Nf3 {[%clk 00:03:02]} {[%emt 00:00:03]} g6 {[%clk 00:03:05]} 3.
Nbd2 {[%clk 00:03:01]} Bg7 {[%clk 00:03:06]} {[%emt 00:00:02]} 4. e4 {[%clk
00:03:02]} {[%emt 00:00:01]} d6 {[%clk 00:03:07]} 5. Bd3 {[%clk 00:03:03]}
{[%emt 00:00:01]} O-O {[%clk 00:03:08]} {[%emt 00:00:01]} 6. O-O {[%clk
00:03:04]} {[%emt 00:00:01]} Nbd7 {[%clk 00:03:08]} {[%emt 00:00:01]} 7. c3
{[%clk 00:03:05]} e5 {[%clk 00:03:10]} 8. Re1 {[%clk 00:03:07]} c6 {[%clk
00:03:09]} {[%emt 00:00:03]} 9. Nf1 {[%clk 00:03:08]} {[%emt 00:00:01]} a5
{[%clk 00:03:00]} {[%emt 00:00:11]} 10. a4 {[%clk 00:03:08]} {[%emt 00:00:01]}
h6 {[%clk 00:02:58]} {[%emt 00:00:04]} 11. h3 {[%clk 00:02:56]} {[%emt
00:00:14]} Nh5 {[%clk 00:02:53]} {[%emt 00:00:08]} 12. g4 {[%clk 00:02:31]}
{[%emt 00:00:27]} Nf4 {[%clk 00:02:53]} {[%emt 00:00:02]} 13. Bxf4 {[%clk
00:02:19]} {[%emt 00:00:14]} exf4 {[%clk 00:02:54]} 14. Kg2 {[%clk 00:02:19]}
{[%emt 00:00:02]} c5 {[%clk 00:02:35]} {[%emt 00:00:20]} 15. Qc1 {[%clk
00:01:54]} {[%emt 00:00:27]} cxd4 {[%clk 00:02:35]} {[%emt 00:00:03]} 16. cxd4
{[%clk 00:01:52]} {[%emt 00:00:04]} g5 {[%clk 00:02:19]} {[%emt 00:00:19]} 17.
N1d2 {[%clk 00:01:47]} {[%emt 00:00:07]} Re8 {[%clk 00:02:15]} {[%emt
00:00:06]} 18. Nc4 {[%clk 00:01:42]} {[%emt 00:00:06]} Nf8 {[%clk 00:02:16]}
{[%emt 00:00:01]} 19. Qc2 {[%clk 00:01:26]} {[%emt 00:00:18]} Be6 {[%clk
00:01:55]} {[%emt 00:00:23]} 20. d5 {[%clk 00:01:18]} {[%emt 00:00:10]} Bc8
{[%clk 00:01:56]} 21. e5 {[%clk 00:01:20]} dxe5 {[%clk 00:01:55]} {[%emt
00:00:02]} 22. Ncxe5 {[%clk 00:01:15]} {[%emt 00:00:06]} Bxe5 {[%clk 00:01:34]}
{[%emt 00:00:23]} 23. Rxe5 {[%clk 00:00:38]} {[%emt 00:00:39]} Rxe5 {[%clk
00:01:35]} {[%emt 00:00:02]} 24. Nxe5 {[%clk 00:00:39]} Qxd5+ {[%clk 00:01:35]}
{[%emt 00:00:01]} 25. Nf3 {[%clk 00:00:41]} Be6 {[%clk 00:01:28]} {[%emt
00:00:10]} 26. Be4 {[%clk 00:00:41]} {[%emt 00:00:02]} Qc4 {[%clk 00:01:13]}
{[%emt 00:00:16]} 27. Qxc4 Bxc4 {[%clk 00:01:14]} 28. Bxb7 {[%clk 00:00:41]}
{[%emt 00:00:01]} Rb8 {[%clk 00:01:16]} 29. Rc1 {[%clk 00:00:31]} {[%emt
00:00:12]} Rxb7 {[%clk 00:00:47]} {[%emt 00:00:31]} 30. Rxc4 {[%clk 00:00:32]}
Rxb2 {[%clk 00:00:48]} {[%emt 00:00:01]} 31. Rc5 {[%clk 00:00:34]} Nd7 {[%clk
00:00:49]} 32. Rxa5 {[%clk 00:00:35]} Nf6 {[%clk 00:00:50]} 33. Re5 {[%clk
00:00:11]} {[%emt 00:00:25]} Ra2 {[%clk 00:00:48]} {[%emt 00:00:05]} 34. a5
{[%clk 00:00:12]} Kg7 {[%clk 00:00:39]} {[%emt 00:00:11]} 35. Nd4 {[%clk
00:00:13]} Nd7 {[%clk 00:00:40]} 36. Nf5+ {[%clk 00:00:13]} {[%emt 00:00:03]}
Kf6 {[%clk 00:00:40]} {[%emt 00:00:03]} 37. Rd5 {[%clk 00:00:13]} {[%emt
00:00:01]} Ne5 {[%clk 00:00:37]} {[%emt 00:00:05]} 38. Rd6# {[%clk 00:00:15]}
{[%emt 00:00:01]} 1-0